Cogmind - Beta 15 @@@ ROGUE MODE // 2025.05.26 @ 03:46:40 Player: Moddy Result: Destroyed by S-10 Pest with Light Assault Rifle Performance ------------- Evolutions (0) 0 Regions Visited (1) 200 Robots Destroyed (0) 0 Value Destroyed (0) 0 Prototype IDs (0) 0 Alien Tech Used (0) 0 Bonus (0) 0 TOTAL SCORE: 200 Bonus ------- None Cogmind --------- Core Integrity 0/250 Matter 300/300 Energy 29/100 System Corruption 0% Temperature Cool (6) Movement Walking (120) Location -10/Materials Parts ------- > --- POWER (1) -------- (None) > --- PROPULSION (2) --- Aluminum Leg Aluminum Leg > --- UTILITY (2) ------ Small Storage Unit ECM Suite > --- WEAPON (2) ------- (None) > --- INVENTORY (8) ---- Ion Engine Aluminum Leg Combat Airjet Flight Unit Flight Unit Medium Matter Pod (100) Peak State ------------ > --- POWER ------------ Light Ion Engine > --- PROPULSION ------- Combat Airjet Flight Unit > --- UTILITY ---------- Small Storage Unit Medium Matter Pod > --- WEAPON ----------- Light Assault Rifle > --- INVENTORY -------- Ion Engine Aluminum Leg Aluminum Leg Aluminum Leg [Rating: 10] Favorites ----------- Power Ion Engine Engine Ion Engine Propulsion Light Treads Treads Light Treads Leg Aluminum Leg Hover Unit Combat Airjet Flight Unit Flight Unit Utility Small Storage Unit Device ECM Suite Storage Small Storage Unit Weapon Assault Rifle Energy Gun EM Pulse Gun Ballistic Gun Assault Rifle Build | -11 -10 ------- Run | Yrd Mat Slots Evolved . | . . Power . | . . Propulsion . | . . Utility . | . . Weapon . | . . Parts Attached 14 | 10 4 Power 2 | 2 . Engine 2 | 2 . Core . | . . Reactor . | . . Propulsion 6 | 3 3 Treads 2 | 2 . Leg 2 | . 2 Wheel . | . . Hover 1 | 1 . Flight 1 | . 1 Utility 3 | 2 1 Device 1 | . 1 Storage 2 | 2 . Processor . | . . Hackware . | . . Protection . | . . Artifact . | . . Weapon 3 | 3 . Energy Gun 1 | 1 . Energy Cannon . | . . Ballistic Gun 2 | 2 . Ballistic Cannon . | . . Launcher . | . . Special Weapon . | . . Impact Weapon . | . . Slashing Weapon . | . . Piercing Weapon . | . . Special Melee Weapon . | . . Unidentified Prototypes . | . . Parts Lost 6 | 4 2 Power 1 | . 1 Propulsion 2 | 2 . Utility . | . . Weapon 3 | 2 1 Highest Loss Streak 2 | 2 2 To Critical Strikes 1 | 1 . Average Backups 3 | 3 5 Power . | . 1 Propulsion 2 | 2 3 Utility . | . . Weapon . | . . Tool/Special . | . . Unused Backups 2 | . 2 Power . | . . Propulsion 2 | . 2 Utility . | . . Weapon . | . . Tool/Special . | . . Average Slot Usage (%) 75 | . 75 Engine 10 | . 10 Leg 4 | . 4 Hover 11 | . 11 Flight 8 | . 8 Device 9 | . 9 Storage 18 | . 18 Ballistic Gun 11 | . 11 Peak Build Rating 10 | 9 10 Average Rating 5 | 5 8 On Entrance 4 | . 9 Naked Turns . | . . Heaviest Build 14 | 14 11 Greatest Support 40 | 40 12 Greatest Overweight (x) 2 | 2 . Average Overweight (x) . | . . Largest Inventory Capacity 8 | 8 8 Average Capacity 7 | 7 8 Most Carried 6 | 5 6 Average Carried 3 | 3 5 Final Capacity 8 | 8 8 Final Carried 6 | 3 6 Class Distribution -------------------- 100% | Mutant Dominant Class ---------------- Mutant | -10/Materials Resources | -11 -10 ----------- Run | Yrd Mat Matter Collected 369 | 369 . Remotely . | . . Salvage Created 49 | 49 . Parts . | . . Haulers Intercepted . | . . Recyclers Shooed . | . . Parts Field Recycled . | . . Retrieved Matter . | . . Parts Self-Destructed . | . . Prevented . | . . Kills | -11 -10 ------- Run | Yrd Mat Combat Hostiles Destroyed 10 | 10 . Guns 10 | 10 . Classes Destroyed 1 | 1 . Assembled 10 | 10 . Best Kill Streak 4 | 4 . Combat Bots Only 4 | 4 . Max Kills in Single Turn 1 | 1 . Gunslinging . | . . Exploded . | . . Melee . | . . Uniques/NPCs Destroyed . | . . Combat | -11 -10 -------- Run | Yrd Mat Hostile Shots Fired 100 | 63 37 Missed 19 | 14 5 Hits 81 | 49 32 Melee 4 | 4 . Projectile 77 | 45 32 Critical Strikes 3 | 3 . Damage Taken 1014 | 714 300 Core 254 | 112 142 Absorbed by Shields . | . . Core Remaining (%) 55 | 55 . Volleys Fired 55 | 48 7 Largest 2 | 2 1 Hottest 60 | 60 20 Shots Fired 57 | 50 7 Gun 57 | 50 7 Cannon . | . . Launcher . | . . Special . | . . Kinetic 55 | 48 7 Thermal . | . . Explosive . | . . Electromagnetic 2 | 2 . Robot Hit Streak 4 | 4 4 Robot Miss Streak 4 | 4 1 Penetration Max . | . . Secondary Targets . | . . Shots Hit Robots 32 | 27 5 Core Hits 26 | 22 4 Critical Kills 1 | 1 . Critical Parts Destroyed . | . . Critical Strikes 1 | 1 . Destroy 1 | 1 . Melee Attacks . | . . Impact . | . . Slashing . | . . Piercing . | . . Sneak Attacks . | . . Combat Hostiles . | . . Follow-up Attacks . | . . Damage Inflicted 288 | 228 60 Guns 266 | 228 38 Cannons . | . . Explosions . | . . Melee . | . . Ramming 22 | . 22 Kinetic 254 | 216 38 Thermal . | . . Explosive . | . . Electromagnetic 12 | 12 . Impact . | . . Slashing . | . . Piercing . | . . Highest Corruption . | . . Average Corruption . | . . Corruption Purged . | . . Corruption Blocked . | . . Overload Shots . | . . Overflow Damage . | . . Projectiles . | . . Explosions . | . . Melee . | . . Knockbacks . | . . Impact . | . . Kinetic . | . . Secondary . | . . Self-Inflicted Damage . | . . Shots . | . . Rammed . | . . Targets Rammed 15 | . 15 Kicked 15 | . 15 Crushed . | . . Highest Temperature 6 | . 6 Average Temperature 2 | . 2 Received Heat Transfer 90 | . 90 Siege Activations . | . . Martial Activations . | . . Shielding Activations . | . . Robots Disrupted . | . . Combat Hostiles . | . . Robots Corrupted . | . . Combat Hostiles . | . . Parts Fried . | . . Impact Corruptions . | . . Robots Melted . | . . Combat Hostiles . | . . Parts Melted . | . . Heat Transferred . | . . Parts Sabotaged . | . . Parts Stolen . | . . Parts Stripped . | . . Power Chain Reactions . | . . Alert | -11 -10 ------- Run | Yrd Mat Maximum Alert Level . | . . Low Security (%) 100 | 100 100 Level 1 . | . . Level 2 . | . . Level 3 . | . . Level 4 . | . . Level 5 . | . . High Security . | . . Max Security . | . . Peak Influence 5 | . 5 Initial . | . . Average . | . . Influence Increases 5 | . 5 Successful Hack 5 | . 5 Influence Decreases 5 | . 5 Time Decay 5 | . 5 Squads Dispatched 1 | . 1 Investigation . | . . Extermination . | . . Reinforcement 1 | . 1 Assault . | . . Garrison . | . . Intercept . | . . Searches Triggered . | . . Construction Impeded . | . . Haulers Reinforced . | . . Active Scanning Responses . | . . Cargo Convoy Interrupts . | . . Stealth | -11 -10 --------- Run | Yrd Mat Distress Signals . | . . Communications Jammed . | . . Distress Signals . | . . Times Spotted 20 | 12 8 Peak Tracking Total 6 | 4 6 Tactical Retreats 2 | 1 1 Traps | -11 -10 ------- Run | Yrd Mat Traps Triggered . | . . Indirectly . | . . Trap Hack Attempts . | . . Triggered . | . . Disarmed . | . . Reprogrammed . | . . Reused . | . . Traps Extracted . | . . Installed . | . . Triggered . | . . Machines | -11 -10 ---------- Run | Yrd Mat Machines Disabled . | . . Max in Single Turn . | . . Machines Repaired . | . . Machines Dismantled . | . . Machines Sabotaged . | . . Overloaded Fab Kills . | . . Hacking | -11 -10 --------- Run | Yrd Mat Machines Accessed 2 | . 2 Terminals 1 | . 1 Fabricators . | . . Repair Stations . | . . Recycling Units 1 | . 1 Scanalyzers . | . . Garrison Access . | . . Total Hacks 7 | . 7 Successful 1 | . 1 Failed 6 | . 6 Catastrophic . | . . Database Lockouts . | . . Manual . | . . Terminals 3 | . 3 Fabricators . | . . Repair Stations . | . . Recycling Units 4 | . 4 Scanalyzers . | . . Garrison Access . | . . Terminal Hacks 1 | . 1 Zone Layout 1 | . 1 Fabricator Hacks . | . . Repair Station Hacks . | . . Recycling Unit Hacks . | . . Scanalyzer . | . . Garrison Access Hacks . | . . Unauthorized Hacks . | . . Terminals . | . . Fabricators . | . . Repair Stations . | . . Recycling Units . | . . Scanalyzers . | . . Garrison Access . | . . Data Cores Recovered . | . . Used . | . . Hacking Detections 2 | . 2 Full Trace Events . | . . Feedback Events . | . . Feedback Blocked . | . . Robot Schematics Acquired . | . . Robots Built . | . . Authchips . | . . Time . | . . Total Robot Build Rating . | . . Part Schematics Acquired . | . . Parts Built . | . . Authchips . | . . Time . | . . Total Part Build Rating . | . . Parts Repaired . | . . Time . | . . Parts Recycled . | . . Recycled Matter . | . . Retrieved Matter . | . . Retrieved Components . | . . Parts Scanalyzed . | . . Part Schematics Acquired . | . . Parts Damaged . | . . Bothacking | -11 -10 ------------ Run | Yrd Mat Used RIF Installer . | . . Robots Hacked . | . . Non-combat . | . . Combat . | . . Robot Hacks Applied . | . . Relay Couplers Released . | . . Fabnet Peak Effective % . | . . Robots Rewired . | . . Allies Hacked . | . . Hacks Repelled . | . . Allies | -11 -10 -------- Run | Yrd Mat Total Allies . | . . Largest Group . | . . Highest-Rated Group . | . . Highest-Rated Ally . | . . Total Orders . | . . Ally Attacks . | . . Total Damage . | . . Kills . | . . Allies Corrupted . | . . Allies Melted . | . . Intel | -11 -10 ------- Run | Yrd Mat Active Infowar (turns) 84 | . 84 ECM 84 | . 84 Robot Analysis Total . | . . Derelict Logs Recovered . | . . Drone Launches . | . . Drone Recoveries . | . . Exploration | -11 -10 ------------- Run | Yrd Mat Turns Passed 2105 | 1997 108 Spaces Moved 631 | 550 81 Core 107 | 107 . Treads 410 | 410 . Legs . | . . Wheels . | . . Hover 114 | 33 81 Flight . | . . Fastest Speed 50 | 50 80 Average Speed 143 | 152 80 Slowest Speed 160 | 160 80 Overloaded Moves . | . . Propulsion Burnouts . | . . Robots Hopped . | . . Potential Cave-ins . | . . Cave-ins Triggered . | . . Exploration Rate (%) 36 | 49 24 Regions Visited 1 Branch Regions . Pre-discovered Areas . | . . Known Exits Taken . | . . Unknown Exits Taken 1 | 1 . Scrap Searched . | . . Spaces Dug . | . . Terrain Destroyed . | . . Melee . | . . Projectile . | . . AOE . | . . Terrain Rammed . | . . Walls Destroyed . | . . Machines Disabled . | . . Actions | -11 -10 --------- Run | Yrd Mat Total 1779 | 1665 114 Wait 1044 | 1043 1 Move 630 | 549 81 Hop . | . . Pick Up 18 | 13 5 Fast Attach . | . . Attach 11 | 10 1 Detach . | . . Swap 5 | 2 3 Drop 1 | . 1 Fire 55 | 48 7 Melee . | . . Ram . | . . Kick 15 | . 15 Crush . | . . Escape Stasis . | . . Rewire . | . . Trap . | . . Miscellaneous . | . . Route ------- -11/Scrapyard -10/Materials History --------- Turn | Location | Event 16 | -11/Scrapyard | Discovered new exit (range 16) 1154 | -11/Scrapyard | Assembled infested the area 1998 | -11/Scrapyard | Entered Materials 2043 | -10/Materials | Build established: Mutant 2075 | -10/Materials | Core integrity fell below 50% 2102 | -10/Materials | Core integrity fell below 20% 2106 | -10/Materials | Destroyed by S-10 Pest with Light Assault Rifle Last Messages --------------- Current location identified: Materials >>Layout(Zone) Retrieving Zone 1C layout... Downloaded map data. O-16 Technician: "IFF HANDSHAKE FAILED. SECURING TERMINAL." ALERT: Hostiles spotted, dispatching reinforcements to Terminal M008. Connecting with Recycling Unit... K-01 Serf cleans the Processing Tank. K-01 Serf collects debris. Lgt. Ion Engine destroyed. S-10 Pest destroyed. Lgt. Assault Rifle destroyed. R-06 Scavenger collects Flight Unit. Kicked G-34 Mercenary out of the way. Kicked G-34 Mercenary. Kicked G-34 Mercenary out of the way. Kicked G-34 Mercenary. Kicked G-34 Mercenary out of the way. Kicked G-34 Mercenary. Kicked G-34 Mercenary out of the way. Map ----- +----------------------------------------------------+ | # #??????????????????????????????????? | | # #??????????????????????????????????? | | # #??????????????????????????????????? | | # #??????????????????????????????????? | | # #??????????????????????????????????? | | # #??????????????????????????????????? | | #######+##################???????????????????????? | | ???# # #???????????????????????? | | ???# # """ #???????????????????????? | | ???# # "Y" """ """ #???????????????????????? | | ######## # """ """ #???????????????????????? | | # # """ """ #???????????????????????? | | / # # #???????????????????????? | | / + #####+############ ???????????????????? | | / # ?????????????????? | | # ?????????????????? | | # ?????????????????? | | #######+####### ######??????????????????? | | ## #???# #???????????????????????? | | ######### """ #???# #???????????????????????? | | ????????# """ #???# +???????????????????????? | | #######?# """ ##### #???????????????????????? | | #?# + #???????????????????????? | | """#?# """ ##### #???????????????????????? | | """#?# """ ######+######???????? ###### ???? | | """#?# """ # s@ #??#### ??? | | #?# # g % ### ??? | | """#?########## %^s ??? | | """#########??# " """"" ### % ??? | | """# ? ??# """"""""" #?? r ??? | | # T ##??# """ """ #??? """ ???? | | """# #???# #??? ""???????? | | ?????????????????#############???? ""???????? | | ?????????????????????????????????? ""???????? | | ??????????????????????????????????? ""???????? | | ??????????????????????????????????? ???????? | | ???????????????????????????????????? ??????? | | ???????????????????????????????????? ??????? | | ????????????????????????????????????? ??????? | | ????????????????????????????????????? ????????? | | ?????????????????????????????????????? ??????????? | | ?????????????????????????????????????????????????? | | ?????????????????????????????????????????????????? | | ?????????????????????????????????????????????????? | | ?????????????????????????????????????????????????? | | ?????????????????????????????????????????????????? | | ?????????????????????????????????????????????????? | | ?????????????????????????????????????????????????? | | ?????????????????????????????????????????????????? | | ?????????????????????????????????????????????????? | +----------------------------------------------------+ Best States ------------- Heat Dissipation 25 Energy Generation 10 Energy Capacity 250 Matter Stores 385 Matter Capacity 400 Sight Range 16 Terrain Scan Density 10 ECM Strength 1 Evasion (%) 49 Recoil Reduction 2 Item Schematics ----------------- None Robot Schematics ------------------ None Fabricated ------------ Nothing Repaired ---------- Nothing Alien Tech Used ----------------- None Achievements -------------- Curiosity Killed The Cat Challenges ------------ None Game ------ Seed FactoryInsulationGun Manual? 0 Play Time 00:08:08 Cumulative 11.4 hours Start 2025.05.26 @ 03:35:30 End 2025.05.26 @ 03:46:40 Sessions 1 Manual Loads 0 Difficulty Rogue Special Mode None Game No. 24 Rogue 24 Adventurer 0 Explorer 0 Win Type - Total 0 Types 0/0/0/0/0/0/0/0/0/0 Lore% 9 Gallery% 21 Achievement% 16 Wizard Run 0 Options --------- Layout 1 ASCII 0 Keyboard 0 Movement Numpad Keybinds 0 Fullscreen 1 Font 32/SmallcapsGlow Map View 77x35 Zoom Use 0% Tactical HUD 0 Map Filters NONE Filters NONE Steam 1 RUN: 9745c5e1-2306-40d1-8675-bef24de4001e